bitfinex/quotes_ETHUSD_20220119
["timestamp","ask_amount","ask_price","bid_price","bid_amount"]
[1642584104431,0.81704581,3080.5,3080.0,1.62369]
[1642584104432,0.00511581,3080.5,3080.0,1.62369]
[1642584104631,0.00454739,3080.4,3080.0,1.62369]
[1642584105029,0.00397896,3080.3,3080.0,1.62369]
[1642584105430,0.00341054,3080.2,3080.0,1.62369]
[1642584105834,0.00284212,3080.1,3080.0,1.62369]
[1642584107292,0.00284212,3080.1,3079.9,1.1711]
[1642584107694,0.00227369,3080.0,3079.9,1.1711]
[1642584107893,0.00227369,3080.0,3079.9,6.8211]
[1642584109797,0.00227369,3080.0,3079.9,1.1711]
[1642584110037,0.00227369,3080.0,3079.8,14.5259]
[1642584110237,0.00227369,3080.0,3079.8,6.6849]
[1642584110437,0.81199,3080.2,3079.8,6.6849]
[1642584110438,0.00170527,3079.9,3079.8,6.6849]
[1642584111037,0.8121456,3079.8,3079.3,4.47327097]
[1642584111438,0.81328245,3079.8,3079.4,2.76446638]
[1642584112641,1.62543245,3079.8,3079.4,2.76446638]
[1642584112841,1.62543245,3079.8,3079.4,0.00113685]
[1642584115685,0.81328685,3079.8,3079.4,0.00113685]
[1642584123593,0.85971012,3079.7,3079.4,0.00113685]
[1642584123794,7.9624,3079.5,3079.4,0.00113685]
[1642584123991,7.9624,3079.5,3079.2,0.0022737]
[1642584123992,0.03328374,3079.4,3079.2,0.0022737]
[1642584124191,0.03328374,3079.4,3078.4,0.00682108]
[1642584124395,0.03328374,3079.4,3078.3,1.62461]
[1642584124396,0.468,3079.3,3078.8,0.00454739]
[1642584124594,0.468,3079.3,3078.4,0.00682108]
[1642584124791,2.0928289,3079.3,3078.4,0.00682108]
[1642584125037,0.8124433,3079.1,3078.4,0.00682108]
[1642584125737,0.81239,3079.0,3078.4,0.00682108]
[1642584126137,1.62477,3079.1,3078.4,0.00682108]
[1642584126341,0.468,3079.6,3078.5,2.76402438]
[1642584126538,0.468,3079.6,3078.6,3.8892071]
[1642584126738,0.81227,3079.2,3078.6,1.13118424]
[1642584126937,0.81227,3079.2,3078.7,0.00511581]
[1642584127142,0.8123652,3079.2,3078.7,0.00511581]
[1642584127937,0.81243,3079.0,3078.7,0.00511581]
[1642584128143,1.624832,3079.0,3078.7,0.00511581]
[1642584129689,0.81243,3079.0,3078.7,0.00511581]
[1642584130586,0.81228,3079.2,3078.7,0.00511581]
[1642584130785,0.812333,3079.3,3078.7,0.00511581]
[1642584131585,0.81234,3079.0,3078.7,0.00511581]
[1642584133032,0.81227,3079.2,3078.7,0.00511581]
[1642584133436,0.00113685,3079.8,3078.8,0.29225]
[1642584133734,0.00113685,3079.8,3078.9,3.0197122]
[1642584133931,0.00113685,3079.8,3079.0,1.13]
[1642584134136,0.81327685,3079.8,3079.1,0.81211]
[1642584134335,0.81327685,3079.8,3079.1,0.81495212]
[1642584134534,0.81327685,3079.8,3079.2,0.0022737]
[1642584135036,0.81327685,3079.8,3079.3,0.81214]
[1642584135838,0.81327685,3079.8,3079.2,0.0022737]
[1642584136292,0.81327685,3079.8,3079.3,0.81213]
[1642584137093,0.81327685,3079.8,3079.1,0.00284212]
[1642584139294,0.81327685,3079.8,3079.1,0.81501212]
[1642584139496,0.81327685,3079.8,3079.1,0.00284212]
[1642584139697,0.81327685,3079.8,3079.2,0.0022737]
[1642584139941,0.81327685,3079.8,3079.1,0.00284212]
[1642584141345,0.81214,3079.8,3079.1,0.00284212]
[1642584141545,0.81214,3079.8,3079.1,0.01534755]
[1642584141945,0.81214,3079.8,3079.2,0.0022737]
[1642584142945,0.81214,3079.8,3079.1,0.00284212]
[1642584144783,0.81214,3079.8,3079.4,1.0]
[1642584146492,0.81206,3080.0,3079.4,1.81213]
[1642584146694,1.5951,3080.6,3079.4,1.81213]
[1642584146695,1.64874229,3080.4,3079.4,1.81213]
[1642584146897,0.00284212,3080.1,3079.8,1.53056671]
[1642584147297,0.00227369,3080.0,3079.8,1.53056671]
[1642584147735,0.00170527,3079.9,3079.8,2.34247671]
[1642584148432,0.00170527,3079.9,3079.8,9.49247671]
[1642584149833,0.00170527,3079.9,3079.8,9.65492671]
[1642584150034,0.00170527,3079.9,3079.8,10.95492671]
[1642584150238,0.00170527,3079.9,3079.8,11.08472671]
[1642584150433,0.00170527,3079.9,3079.8,30.23472671]
[1642584150832,0.00170527,3079.9,3079.8,30.53472671]
[1642584151035,0.00170527,3079.9,3079.8,30.66462871]
[1642584151887,0.00170527,3079.9,3079.8,30.53472671]
[1642584152289,1.64874229,3081.0,3080.0,2.4350991]
[1642584152489,1.64874229,3081.0,3080.3,0.3]
[1642584152689,0.00511581,3080.8,3080.4,3.03467264]
[1642584152892,0.13812547,3080.7,3080.4,0.81173]
[1642584153092,0.14267286,3080.7,3080.4,0.81173]
[1642584153287,0.00397896,3080.6,3080.4,0.81173]
[1642584153487,0.00397896,3080.6,3080.4,2.43518]
[1642584153687,0.14153601,3080.5,3080.4,2.43518]
[1642584153887,0.14153601,3080.5,3080.4,1.62345]
[1642584154087,0.00341054,3080.5,3080.4,1.62345]
[1642584154939,0.00341054,3080.5,3080.1,0.81193]
[1642584155333,0.00284212,3080.4,3080.1,0.81193]
[1642584155734,0.00227369,3080.3,3080.1,0.81193]
[1642584156132,0.00170527,3080.2,3080.1,0.81193]
[1642584156337,0.00170527,3080.2,3080.0,6.7347]
[1642584156840,1.75365,3080.8,3080.0,6.7347]
[1642584156841,0.00113685,3080.1,3080.0,6.7347]
[1642584157237,0.00113685,3080.1,3080.0,4.299]
[1642584159095,0.13927038,3080.1,3080.0,4.299]
[1642584159296,0.13927038,3080.1,3079.9,0.13819997]
[1642584159498,0.00113685,3080.1,3079.9,0.13819997]
[1642584160097,0.00113685,3080.1,3080.0,7.31245]
[1642584160298,0.00113685,3080.1,3080.0,9.75728987]
[1642584160497,0.00113685,3080.1,3080.0,10.40663347]
[1642584160898,0.00113685,3080.1,3080.0,7.9617936]
[1642584161097,0.00113685,3080.1,3080.0,10.17139574]
[1642584161503,0.00113685,3080.1,3080.0,9.35960214]
[1642584161702,0.00113685,3080.1,3080.0,7.15]
[1642584162105,0.00113685,3080.1,3080.0,7.31245]
[1642584162304,0.00113685,3080.1,3080.0,7.15]
[1642584163141,0.00113685,3080.1,3080.0,9.33966636]
[1642584164238,0.00113685,3080.1,3080.0,7.15]
[1642584164841,0.00113685,3080.1,3080.0,8.3223]
[1642584165440,0.00113685,3080.1,3080.0,10.64342548]
[1642584166285,0.00113685,3080.1,3079.9,0.13819997]
[1642584166488,0.00113685,3080.1,3079.9,1.33909997]
[1642584166886,0.00113685,3080.1,3079.9,0.13819997]
[1642584167685,0.13926907,3080.1,3079.9,0.13819997]
[1642584167885,0.00113685,3080.1,3079.9,2.3213609]
[1642584168086,0.00113685,3080.1,3079.9,3.5183609]
[1642584168389,0.00113685,3080.1,3079.9,1.33519997]
[1642584169389,0.13926907,3080.1,3079.9,1.197]
[1642584169587,0.13813222,3080.0,3079.9,1.197]
[1642584169787,0.00113685,3080.1,3079.9,1.197]
[1642584170641,1.62532585,3080.1,3079.7,3.6978]
[1642584170842,1.62532585,3080.1,3079.6,4.402216]
[1642584171046,0.26793222,3080.0,3079.6,4.402216]
[1642584171244,0.26793222,3080.0,3079.7,0.00113685]
[1642584172045,0.81217,3079.9,3079.5,0.00227369]
[1642584172245,0.13813222,3079.8,3079.5,0.00227369]
[1642584172644,0.13813222,3079.7,3079.5,0.00227369]
[1642584172844,0.13813222,3079.6,3079.5,0.00227369]
[1642584173045,0.13813222,3079.6,3079.5,7.15227369]
[1642584173244,0.00113685,3080.1,3079.5,7.15227369]
[1642584173690,0.26906907,3080.1,3079.6,0.00170527]
[1642584173883,0.13813222,3080.0,3079.6,0.00170527]
[1642584174087,0.13813222,3079.9,3079.6,0.81375527]
[1642584174283,0.13813222,3079.8,3079.7,2.58226224]
[1642584174484,0.13813222,3079.8,3079.7,2.58339909]
[1642584174687,0.00113685,3080.1,3079.7,3.79340551]
[1642584175585,0.00113685,3080.1,3079.7,2.02304327]
[1642584176189,0.00113685,3080.1,3079.7,0.81303685]
[1642584177287,0.34627407,3080.1,3079.7,0.81303685]
[1642584177533,0.34513722,3080.0,3079.7,0.81303685]
[1642584177831,0.34513722,3079.9,3079.7,0.81303685]
[1642584178033,0.00113685,3080.1,3079.7,0.81303685]
[1642584179832,0.46642053,3080.1,3079.7,0.81303685]
[1642584180034,0.46528368,3080.0,3079.7,0.81303685]
[1642584180233,0.46528368,3079.9,3079.7,0.81303685]
[1642584180434,0.00113685,3080.1,3079.8,0.16245]
[1642584180636,0.00113685,3080.1,3079.8,1.78611]
[1642584181035,0.00113685,3080.1,3079.8,2.78611]
[1642584181493,0.00113685,3080.1,3079.8,1.97428]
[1642584181889,0.00113685,3080.1,3079.8,0.97428]
[1642584182090,0.00113685,3080.1,3079.8,1.97428]
[1642584182288,0.00113685,3080.1,3079.8,0.97428]
[1642584182488,0.00113685,3080.1,3079.8,2.104177]
[1642584182689,0.00113685,3080.1,3079.8,1.104177]
[1642584182890,0.00113685,3080.1,3079.8,2.104177]
[1642584183291,0.00113685,3080.1,3079.8,1.97428]
[1642584183492,0.00113685,3080.1,3079.8,0.97428]
[1642584183791,0.00113685,3080.1,3079.8,1.97428]
[1642584183993,0.00113685,3080.1,3079.8,0.97428]
[1642584184192,0.00113685,3080.1,3079.8,1.97428]
[1642584184390,0.00113685,3080.1,3079.8,0.97428]
[1642584186439,0.00113685,3080.1,3080.0,8.1242148]
[1642584186651,0.00113685,3080.1,3080.0,28.8720148]
[1642584187240,1.64874229,3080.9,3080.1,0.81173]
[1642584187443,1.64874229,3080.9,3080.5,1.51583402]
[1642584187640,0.00511581,3080.8,3080.5,1.51583402]
[1642584187840,0.00511581,3080.8,3080.2,1.16245]
[1642584188039,0.1298,3081.2,3080.2,1.16245]
[1642584188040,0.00454739,3080.7,3080.2,1.16245]
[1642584188439,0.00397896,3080.6,3080.2,2.78589]
[1642584188884,0.00341054,3080.5,3080.4,4.12047647]
[1642584189585,0.00341054,3080.5,3080.4,3.06245]
[1642584190584,0.00341054,3080.5,3080.4,5.29518638]
[1642584191183,0.00341054,3080.5,3080.4,4.29518638]
[1642584191587,0.00341054,3080.5,3080.4,3.06245]
[1642584192833,0.00341054,3080.5,3080.4,4.33070897]
[1642584193033,0.00341054,3080.5,3080.4,5.63070897]
[1642584193735,0.00341054,3080.5,3080.4,4.63070897]
[1642584193935,0.00341054,3080.5,3080.4,5.63070897]
[1642584194342,0.00341054,3080.5,3080.4,4.33070897]
[1642584194536,0.00341054,3080.5,3080.4,3.06245]
[1642584196492,0.69730189,3080.5,3080.4,3.06245]
[1642584196692,0.00341054,3080.5,3080.4,3.06245]
[1642584196896,0.00341054,3080.5,3080.4,4.06245]
[1642584197093,0.69730189,3080.5,3080.4,4.06245]
[1642584197294,0.00341054,3080.5,3080.4,4.06245]
[1642584197693,0.00341054,3080.5,3080.4,4.36245]
[1642584197894,0.00341054,3080.5,3080.4,7.11245]
[1642584198094,0.69730189,3080.5,3080.4,7.11245]
[1642584198495,0.00341054,3080.5,3080.4,7.11245]
[1642584200533,0.69730189,3080.5,3080.4,7.11245]
[1642584200733,0.00341054,3080.5,3080.4,7.11245]
[1642584201036,0.00341054,3080.5,3080.4,7.55064996]
[1642584201245,0.00341054,3080.5,3080.4,26.83044996]
[1642584201639,0.69389135,3080.7,3080.5,7.15]
[1642584201841,1.64874229,3081.3,3080.6,21.37088]
[1642584202043,0.00113685,3080.7,3080.6,21.07308]
[1642584202240,0.00113685,3080.7,3080.6,24.72684391]
[1642584202443,0.00113685,3080.7,3080.6,27.16148311]
[1642584202641,0.00113685,3080.7,3080.6,8.31148311]
[1642584202841,0.00113685,3080.7,3080.6,15.46148311]
[1642584203041,0.00113685,3080.7,3080.6,4.1764792]
[1642584203241,1.62967914,3081.2,3080.7,3.05]
[1642584203440,0.1298,3081.2,3080.7,3.05]
[1642584203683,0.13264211,3081.2,3080.7,3.35]
[1642584203884,0.13264211,3081.2,3080.8,0.81173]
[1642584205083,0.00284211,3081.2,3080.8,0.81173]
[1642584205684,0.81462211,3081.2,3080.8,0.81173]
[1642584206388,0.1298,3081.1,3080.8,0.81173]
[1642584206788,0.00170527,3081.0,3080.8,0.81173]
[1642584207192,0.00113684,3080.9,3080.8,0.81173]
[1642584208038,0.00113684,3080.9,3080.8,8.12403]
[1642584209239,0.00113684,3080.9,3080.8,27.87403]
[1642584209442,2.47785312,3081.9,3081.0,0.81142]
[1642584209644,2.47785312,3082.0,3081.1,2.4502115]
[1642584209844,0.00397897,3081.6,3081.2,19.15]
[1642584210241,0.00341054,3081.5,3081.3,0.1623]
[1642584210442,0.00341054,3081.5,3081.3,0.9737]
[1642584210641,2.47785312,3082.1,3081.4,7.70822262]
[1642584210846,2.47785312,3082.1,3081.5,19.6123]
[1642584211046,0.00568424,3081.9,3081.5,20.21]
[1642584211290,2.47785312,3082.7,3081.7,26.3]
[1642584211494,2.47785312,3082.8,3081.8,0.81126]
[1642584211690,0.00341054,3082.5,3081.9,0.81126]
[1642584212088,3.30353367,3083.0,3081.9,0.81126]
[1642584212089,0.00284212,3082.4,3081.9,1.7848141]
[1642584212492,1.64701764,3082.5,3081.9,2.5960741]
[1642584212493,0.00227369,3082.3,3081.9,2.5960741]
[1642584212893,1.64701764,3082.5,3082.0,1.62263]
[1642584212894,0.00170527,3082.2,3082.0,1.62263]
[1642584213294,0.00113685,3082.1,3082.0,1.62263]
[1642584213494,0.00113685,3082.1,3082.0,5.78486]
[1642584214395,0.00113685,3082.1,3082.0,4.16223]
[1642584214795,1.59815449,3082.6,3082.1,4.4]
[1642584215046,1.59815449,3082.6,3082.1,5.21129]
[1642584215240,0.00227369,3082.5,3082.1,5.21129]
[1642584215639,0.00170527,3082.4,3082.1,5.21129]
[1642584215841,0.00170527,3082.4,3082.3,0.81131]
[1642584216039,2.47785312,3082.7,3082.3,0.81131]
[1642584216542,0.00341054,3082.7,3082.3,0.81131]
[1642584217343,0.00341054,3082.7,3082.3,1.62263]
[1642584217744,0.00341054,3082.7,3082.4,1.27169729]
[1642584217943,0.00341054,3082.7,3082.4,0.81125]
[1642584218147,0.00341054,3082.7,3082.5,2.34139464]
[1642584218345,0.80743093,3082.7,3082.5,2.34139464]
[1642584218545,0.80402039,3082.6,3082.5,11.41538]
[1642584219186,0.80402039,3082.6,3082.5,3.18269955]
[1642584219588,0.80402039,3082.6,3082.5,10.33269955]
[1642584221692,2.47785312,3083.5,3082.6,7.15]
[1642584221897,5.312e-05,3083.5,3083.4,7.16291086]
[1642584222096,0.67781809,3083.9,3083.5,4.95]
[1642584222293,0.67781809,3083.9,3083.6,0.468]
[1642584222954,0.67781809,3083.9,3083.8,0.16223]
[1642584223250,0.67781809,3083.9,3083.4,0.1297]
[1642584223251,0.68463917,3083.9,3083.4,0.16216]
[1642584223648,0.00625265,3083.8,3083.4,0.16216]
[1642584223845,0.00625265,3083.8,3083.3,0.1297]
[1642584224045,0.00568423,3083.7,3083.3,0.1297]
[1642584224447,0.00511581,3083.6,3083.4,0.81099]
[1642584224645,0.00511581,3083.6,3083.5,1.62169]
[1642584224846,0.67781809,3083.9,3083.5,1.62169]
[1642584225051,1.63998349,3083.8,3083.3,0.1297]
[1642584225249,1.63998349,3083.7,3083.3,0.1297]
[1642584225649,0.00511581,3083.6,3083.3,0.1297]
[1642584225848,0.00511581,3083.6,3083.1,1.62219]
[1642584226046,0.67781809,3083.9,3083.1,1.62219]
[1642584226047,0.00454738,3083.5,3083.1,1.62219]
[1642584226297,0.00454738,3083.5,3083.3,19.15]
[1642584226493,0.00397896,3083.4,3083.3,19.45]
[1642584226694,0.67781809,3083.9,3083.4,7.15]
[1642584226893,0.67781809,3083.9,3083.5,19.2797]
[1642584227094,0.00227369,3083.8,3083.5,20.0905]
[1642584227298,0.00227369,3083.8,3083.7,7.11216]
[1642584227596,0.67781809,3083.9,3083.7,7.71216]
[1642584227796,0.67781809,3083.9,3083.7,8.65264]
[1642584228199,0.67781809,3083.9,3083.7,9.4634]
[1642584228397,1.809e-05,3083.9,3083.8,29.86461605]
[1642584228796,3.16860759,3084.8,3084.1,1.22777101]
[1642584228996,3.16860759,3084.8,3084.3,0.81074]
[1642584229196,0.00738951,3084.7,3084.3,0.81074]
[1642584229597,0.00682108,3084.6,3084.4,2.17105708]
[1642584229797,0.00682108,3084.6,3084.3,0.81074]
[1642584230060,0.00625266,3084.5,3084.3,0.81074]
[1642584230450,0.00568423,3084.4,3084.3,1.62147]
[1642584230650,0.00568423,3084.4,3084.3,6.22147]
[1642584231050,0.00568423,3084.4,3084.3,1.62147]
[1642584231256,0.00568423,3084.4,3084.3,6.78358]
[1642584231457,0.00568423,3084.4,3084.3,11.85961704]
[1642584231657,0.00568423,3084.4,3084.3,36.17861704]
[1642584231856,1.5286241,3084.8,3084.4,8.77101]
[1642584232057,1.5286241,3084.8,3084.5,1.57848]
[1642584232254,1.5286241,3084.8,3084.6,9.58152]
[1642584232459,2.45118889,3085.5,3085.0,1.62081]
[1642584232460,1.63998349,3085.5,3085.0,1.62081]
[1642584232954,0.00341054,3085.3,3085.1,0.8105]
[1642584233154,0.00341054,3085.3,3085.1,0.81041]
[1642584233359,0.00284211,3085.2,3085.0,3.24181]
[1642584233787,0.00227369,3085.1,3085.0,3.24181]
[1642584233986,0.00227369,3085.1,3085.0,10.0807]
[1642584234189,0.00227369,3085.1,3085.0,8.29761]
[1642584234391,0.00227369,3085.1,3085.0,1.62081]
[1642584234599,0.00227369,3085.1,3085.0,1e-05]
[1642584234795,0.00227369,3085.1,3084.1,0.1295]
[1642584234796,1.29511784,3084.8,3084.1,0.1295]
[1642584235189,1.29511784,3084.8,3084.2,0.00284212]
[1642584235491,1.29511784,3084.8,3084.3,0.81074]
[1642584235894,1.29511784,3084.8,3084.4,0.00170528]
[1642584236293,1.29511784,3084.8,3084.4,0.81239528]
[1642584236494,1.29511784,3084.8,3084.5,0.81069]
[1642584236698,1.29511784,3084.8,3084.7,4.56209]
[1642584236998,1.29511784,3084.8,3084.7,0.16209]
[1642584237740,1.29511784,3084.8,3084.5,0.81182685]
[1642584237938,1.29511784,3084.8,3084.5,1.11182685]
[1642584238139,1.29511784,3084.8,3084.5,0.81182685]
[1642584238544,1.29511784,3084.8,3084.7,4.56209]
[1642584238942,1.29511784,3084.8,3084.7,0.16209]
[1642584239142,1.29511784,3084.8,3084.7,0.04251832]
[1642584241212,1.29511784,3084.8,3084.6,2.32636772]
[1642584241213,1.29511784,3084.8,3084.6,0.1295]
[1642584242606,0.65056749,3084.7,3084.6,0.1295]
[1642584243005,1.29511784,3084.8,3084.6,0.1295]
[1642584243208,1.29511784,3084.8,3084.5,0.81182685]
[1642584243209,7.80059155,3084.7,3084.5,0.00113685]
[1642584243407,7.65059155,3084.6,3084.5,0.00113685]
[1642584243606,0.65059155,3084.6,3084.0,0.00397897]
[1642584243810,1.29511784,3084.8,3084.0,0.00397897]
[1642584243811,0.65059155,3084.5,3084.0,0.00397897]
[1642584244006,0.65059155,3084.4,3084.0,0.00397897]
[1642584244206,1.29511784,3084.8,3084.0,0.00397897]
[1642584244409,0.81095,3084.3,3084.0,0.00397897]
[1642584244608,3.14541381,3084.7,3084.0,0.81485897]
[1642584244609,1.62184,3084.7,3084.0,0.81485897]
[1642584244807,0.71276943,3084.6,3084.0,0.81485897]
[1642584245038,1.29511784,3084.8,3084.1,1.62489055]
[1642584245239,0.71264186,3084.7,3084.1,1.62489055]
[1642584245437,0.71264186,3084.7,3084.2,3.88248547]
[1642584245639,0.71264186,3084.7,3084.2,1.66684044]
[1642584245836,0.71264186,3084.7,3084.3,0.0022737]
[1642584246739,0.71264186,3084.7,3084.0,0.00397897]
[1642584247340,0.81088,3084.6,3084.0,0.00397897]
[1642584247541,0.71264186,3084.5,3084.0,0.00397897]
[1642584248542,0.71264186,3084.4,3084.0,1.62560897]
[1642584248804,3.30353367,3085.6,3084.0,1.62560897]
[1642584248805,1.26327752,3087.3,3084.5,7.15]
[1642584249007,1.26327752,3087.3,3086.0,5.86589272]
[1642584249008,3.5,3087.2,3086.0,5.86589272]
[1642584249201,1.26327752,3087.3,3084.7,3.06332148]
[1642584249202,0.1278355,3087.3,3087.1,0.01279968]
[1642584249398,0.0148975,3087.3,3087.2,7.90177373]
[1642584249597,0.0148975,3087.3,3087.2,1.15177373]
[1642584249799,2.493485,3087.7,3087.4,0.68377373]
[1642584249800,2.4083825,3087.7,3087.4,0.68377373]
[1642584249995,2.4083825,3087.7,3087.3,2.8]
[1642584249996,2.4083825,3087.7,3087.6,0.68377373]
[1642584250198,2.4083825,3087.7,3087.6,1.15177373]
[1642584250799,4.25878658,3087.7,3087.6,1.15177373]
[1642584251197,7.25878658,3087.7,3087.6,0.26597373]
[1642584251403,7.15,3087.6,3086.9,0.1295]
[1642584251605,7.15,3087.6,3086.4,0.13819997]
[1642584251606,10.29451216,3087.6,3086.4,1.62056]
[1642584251802,10.32154282,3087.6,3086.4,0.32036]
[1642584252003,10.48256282,3087.6,3086.4,0.32036]
[1642584252204,8.14833066,3087.6,3086.4,0.32036]
[1642584252841,0.8103,3087.3,3086.4,0.32036]
[1642584253039,7.16477901,3087.6,3086.4,0.32036]
[1642584253241,0.01250531,3087.2,3086.4,0.32036]
[1642584253443,0.16102,3087.3,3086.3,0.1295]
[1642584253642,0.01193689,3087.1,3086.3,0.1295]
[1642584253840,0.16102,3087.3,3086.3,0.1295]
[1642584253841,0.01250531,3087.2,3086.3,0.1295]
[1642584254040,0.01136846,3087.0,3086.3,0.1295]
[1642584254244,1.45945651,3086.6,3086.3,0.00870452]
[1642584254742,0.00852635,3086.5,3086.3,0.00870452]
[1642584255241,4.00795792,3086.4,3086.3,0.00870452]
[1642584255840,5.93511796,3086.4,3086.3,0.00870452]
[1642584256315,6.06471796,3086.4,3086.3,0.00870452]
[1642584256917,0.13755792,3086.4,3086.3,0.00870452]
[1642584257116,0.00795792,3086.4,3086.3,0.00870452]
[1642584257413,0.00795792,3086.4,3085.9,1.62078]
[1642584257815,0.0073895,3086.3,3085.9,1.62078]
[1642584258316,0.00682108,3086.2,3085.9,1.62078]
[1642584258616,0.00625265,3086.1,3085.9,1.62078]
[1642584259014,0.00568423,3086.0,3085.9,1.62078]
[1642584261248,0.00568423,3086.0,3085.9,8.48937226]
[1642584261446,0.00568423,3086.0,3085.9,8.78937226]
[1642584261644,0.00568423,3086.0,3085.9,6.62078]
[1642584261848,0.81031,3087.3,3086.0,4.8]
[1642584262051,0.1295,3087.2,3086.2,1.62062]
[1642584262246,0.1295,3087.2,3086.4,0.81031]
[1642584262447,0.00795793,3087.4,3086.4,0.81031]
[1642584262646,0.1295,3087.3,3086.4,0.81031]
[1642584262846,0.13688951,3087.3,3086.4,0.81031]
[1642584263046,0.00682108,3087.2,3086.4,2.19180452]
[1642584263247,0.00682108,3087.2,3086.6,0.81026]
[1642584263451,0.00625266,3087.1,3086.6,0.81027]
[1642584263898,0.81608423,3087.0,3086.5,1.62053]
[1642584264098,0.1295,3086.9,3086.5,1.62053]
[1642584264297,0.13461581,3086.9,3086.5,1.62053]
[1642584264499,0.00454739,3086.8,3086.5,1.62053]
[1642584264897,0.00397896,3086.7,3086.5,1.62053]
[1642584265297,1.75027,3087.4,3086.5,1.62053]
[1642584265298,0.00341054,3086.6,3086.5,1.62053]
[1642584266703,0.00341054,3086.6,3086.2,1.62078]
[1642584266906,0.00341054,3086.6,3086.0,3.7599]
[1642584267106,0.00284212,3086.5,3086.0,3.7599]
[1642584267545,0.00227369,3086.4,3086.0,3.7599]
[1642584267947,0.00170527,3086.3,3086.0,3.7599]
[1642584268148,0.81229527,3086.3,3085.5,0.1295]
[1642584268352,2.23423083,3086.2,3085.0,0.1295]
[1642584268548,2.23423083,3086.2,3084.5,12.1111]
[1642584268549,0.1295,3086.1,3085.6,0.0022737]
[1642584268746,0.1295,3086.1,3085.3,0.81072]
[1642584268947,0.1295,3086.1,3085.4,0.00341054]
[1642584269347,0.81079,3085.9,3085.4,0.00341054]
[1642584269550,0.94029,3085.9,3085.4,0.00341054]
[1642584269748,0.94029,3085.9,3085.0,0.00568423]
[1642584269953,1.10131,3085.9,3085.0,0.00568423]
[1642584270148,1.10131,3085.9,3084.6,0.00795793]
[1642584270348,2.62026254,3085.8,3084.6,0.00795793]
[1642584270549,0.81078,3085.5,3084.7,1.62155]
[1642584270848,0.81078,3085.5,3084.8,0.00682108]
[1642584271313,1.75114,3085.7,3084.8,0.00682108]
[1642584271314,0.8110227,3085.3,3084.8,0.00682108]
[1642584271511,1.2790227,3085.3,3084.8,0.00682108]
[1642584271710,1.2790227,3085.3,3084.6,0.00795793]
[1642584271711,0.8111,3085.1,3084.6,0.00795793]
[1642584272008,0.29052,3085.0,3084.6,0.00795793]
[1642584272209,0.1295,3085.0,3084.6,0.00795793]
[1642584272408,0.1295,3085.4,3084.6,0.00795793]
[1642584272807,0.468,3085.6,3084.3,1.62165]
[1642584272808,0.14207381,3085.3,3084.3,1.62165]
[1642584273009,0.14207381,3085.2,3084.4,0.00909478]
[1642584273207,0.1295,3085.5,3084.4,0.00909478]
[1642584273208,0.14207381,3085.1,3084.4,0.00909478]
[1642584273409,0.14207381,3085.0,3084.4,3.94549478]
[1642584273710,0.94025,3085.6,3084.7,0.81077]
[1642584273912,0.13793101,3085.5,3084.8,0.04251832]
[1642584274110,0.13793101,3085.4,3084.8,0.0493394]
[1642584274309,2.28333659,3085.9,3084.9,0.00625266]
[1642584274510,0.26742803,3085.8,3084.9,0.00625266]
[1642584274808,0.26742803,3085.8,3084.7,0.0073895]
[1642584274809,0.13792803,3085.7,3084.7,0.0073895]
[1642584275046,0.1295,3085.6,3084.7,0.0073895]
[1642584275253,0.13792803,3085.5,3084.7,0.0073895]
[1642584275447,0.13792803,3085.5,3084.9,1.62127]
[1642584275653,0.13792803,3085.4,3085.0,0.81068]
[1642584275848,1.62972835,3086.2,3085.0,0.81636423]
[1642584276048,0.2674217,3086.1,3085.1,0.00511581]
[1642584276251,0.1379217,3086.0,3085.1,0.00511581]
[1642584276554,0.9485817,3086.0,3085.1,1.62122]
[1642584276752,2.64695145,3085.9,3084.9,0.81703266]
[1642584276951,2.64695145,3085.9,3084.6,3.11365945]
[1642584276952,0.1379217,3085.8,3085.2,0.00454739]
[1642584277153,0.1379217,3085.8,3084.6,1.62145]
[1642584277154,0.1295,3085.7,3085.0,0.00568423]
[1642584277354,1.6285915,3086.1,3084.7,0.0073895]
[1642584277355,0.1379217,3085.6,3084.7,0.0073895]
[1642584277553,0.1379217,3085.5,3084.9,1.62136]
[1642584277757,4.02522536,3086.2,3084.9,2.43208]
[1642584277758,0.1379217,3085.4,3084.9,2.43208]
[1642584277954,0.13792626,3085.3,3085.0,0.81643423]
[1642584278152,0.81071,3085.8,3085.0,0.81643423]
[1642584278353,0.13792733,3085.7,3085.1,0.00511581]
[1642584278555,2.48153417,3085.7,3085.1,0.00511581]
[1642584278793,3.43173515,3085.6,3085.0,0.00568423]
[1642584278996,1.76651883,3085.5,3085.0,0.00237689]
[1642584279195,2.65208877,3085.4,3084.7,0.0073895]
[1642584279394,0.13792733,3085.3,3084.6,0.81086]
[1642584279594,0.1295,3085.2,3084.6,0.81086]
[1642584279796,0.13792733,3085.1,3084.7,0.00408216]
[1642584279993,0.1295,3085.0,3084.7,0.00408216]
[1642584280192,0.1295,3085.0,3084.4,0.00578744]
[1642584280193,0.13792733,3084.9,3084.4,0.00578744]
[1642584280594,0.13792733,3084.8,3084.4,0.00578744]
[1642584280794,0.13792733,3084.7,3084.5,0.81083]
[1642584280994,0.81086,3085.2,3084.5,0.81083]
[1642584281195,0.22578621,3085.1,3084.6,0.00465059]
[1642584281600,0.22578621,3085.0,3084.4,0.00578744]
[1642584281801,2.54116266,3084.9,3084.4,0.00578744]
[1642584281999,0.22578621,3084.8,3084.4,0.00578744]
[1642584282198,0.22578621,3084.7,3084.1,0.00749271]
[1642584282646,0.22578621,3084.6,3084.1,0.00749271]
[1642584282846,0.22578621,3084.5,3084.1,0.00749271]
[1642584283050,0.22578621,3084.4,3084.1,0.00749271]
[1642584283247,2.78751919,3085.1,3084.1,0.00749271]
[1642584283447,0.36692135,3085.0,3084.1,0.00749271]
[1642584283648,0.81101,3084.8,3084.1,0.00749271]
[1642584283851,2.63201035,3084.7,3084.1,0.00749271]
[1642584284048,0.36692135,3084.6,3084.1,0.00749271]
[1642584284250,0.36692135,3084.5,3083.7,0.0097664]
[1642584284448,0.36692135,3084.4,3083.9,0.00862955]
[1642584284648,1.17804135,3084.3,3083.7,0.0097664]
[1642584284848,1.86849002,3084.9,3083.8,1.62192]
[1642584284849,0.36592135,3084.2,3083.8,1.62192]
[1642584285048,0.07887852,3084.9,3083.8,1.62192]
[1642584285247,0.07887852,3084.9,3083.9,0.81964955]
[1642584285652,0.07887852,3084.9,3084.0,0.00806113]
[1642584285653,0.8110353,3084.8,3084.0,0.00806113]
[1642584285847,0.81097,3084.7,3084.0,0.00806113]
[1642584286046,2.58159737,3084.6,3083.9,0.00862955]